[Event "*** Titled Tuesday Blitz"]
[Site "Chess.com"]
[Date "2020.05.12"]
[Round "9"]
[White "MightyGMpretender"]
[Black "snowlord"]
[Result "1-0"]
[WhiteElo "2596"]
[BlackElo "2737"]
[TimeControl "180+1"]
[EndTime "11:43:30 PDT"]
[Termination "MightyGMpretender won on time"]

1. d4 {[%clk 0:03:00.9]} 1... Nf6 {[%clk 0:02:58.9]} 2. c4 {[%clk 0:03:01]} 2...
e6 {[%clk 0:02:59.1]} 3. Nc3 {[%clk 0:03:00.9]} 3... Bb4 {[%clk 0:02:59.2]} 4.
Nf3 {[%clk 0:03:01.2]} 4... O-O {[%clk 0:02:53.6]} 5. Bg5 {[%clk 0:02:57.6]}
5... h6 {[%clk 0:02:53.2]} 6. Bxf6 {[%clk 0:02:57.1]} 6... Qxf6 {[%clk
0:02:51.8]} 7. e3 {[%clk 0:02:57.6]} 7... b6 {[%clk 0:02:44.7]} 8. Bd3 {[%clk
0:02:57.1]} 8... Bb7 {[%clk 0:02:42.2]} 9. O-O {[%clk 0:02:57]} 9... Bxc3 {[%clk
0:02:41.8]} 10. bxc3 {[%clk 0:02:56.8]} 10... Bxf3 {[%clk 0:02:40.2]} 11. Qxf3
{[%clk 0:02:57.3]} 11... Qxf3 {[%clk 0:02:40]} 12. gxf3 {[%clk 0:02:57.9]} 12...
d6 {[%clk 0:02:40.9]} 13. c5 {[%clk 0:02:53.8]} 13... Nd7 {[%clk 0:02:36.4]} 14.
cxd6 {[%clk 0:02:48.9]} 14... cxd6 {[%clk 0:02:36.1]} 15. a4 {[%clk 0:02:49.4]}
15... d5 {[%clk 0:02:12.1]} 16. c4 {[%clk 0:02:45.1]} 16... dxc4 {[%clk
0:02:12.9]} 17. Bxc4 {[%clk 0:02:45.2]} 17... Rfc8 {[%clk 0:02:13.4]} 18. Rfc1
{[%clk 0:02:45.2]} 18... a6 {[%clk 0:02:01.1]} 19. Bd3 {[%clk 0:02:37.3]} 19...
Kf8 {[%clk 0:01:51.9]} 20. Rxc8+ {[%clk 0:02:33.4]} 20... Rxc8 {[%clk
0:01:52.3]} 21. Bxa6 {[%clk 0:02:33.9]} 21... Rc2 {[%clk 0:01:47.9]} 22. Bd3
{[%clk 0:02:22.4]} 22... Rc3 {[%clk 0:01:42.2]} 23. Bb5 {[%clk 0:02:11.9]} 23...
Nf6 {[%clk 0:01:42]} 24. Ra2 {[%clk 0:02:10.3]} 24... g5 {[%clk 0:01:31.3]} 25.
h3 {[%clk 0:02:08.3]} 25... Kg7 {[%clk 0:01:21.1]} 26. Kf1 {[%clk 0:02:08.2]}
26... Rc1+ {[%clk 0:01:10.8]} 27. Kg2 {[%clk 0:02:04.2]} 27... Nd5 {[%clk
0:00:59.7]} 28. Rb2 {[%clk 0:02:01.7]} 28... Rc3 {[%clk 0:00:48.8]} 29. Kg3
{[%clk 0:01:53.5]} 29... Ne7 {[%clk 0:00:47.3]} 30. Bd7 {[%clk 0:01:47.1]} 30...
Rc7 {[%clk 0:00:42.2]} 31. Be8 {[%clk 0:01:45.1]} 31... Kf8 {[%clk 0:00:40.4]}
32. Bb5 {[%clk 0:01:43.8]} 32... Nf5+ {[%clk 0:00:40.5]} 33. Kg2 {[%clk
0:01:41.6]} 33... Nh4+ {[%clk 0:00:40.1]} 34. Kg3 {[%clk 0:01:41.9]} 34... Nf5+
{[%clk 0:00:39.9]} 35. Kg4 {[%clk 0:01:35.6]} 35... Rc1 {[%clk 0:00:29.4]} 36.
f4 {[%clk 0:01:36.1]} 36... Rg1+ {[%clk 0:00:15.3]} 37. Kf3 {[%clk 0:01:35]}
37... Nh4+ {[%clk 0:00:14.3]} 38. Ke4 {[%clk 0:01:35.1]} 38... gxf4 {[%clk
0:00:10.9]} 39. Kxf4 {[%clk 0:01:32.4]} 39... Ng6+ {[%clk 0:00:11]} 40. Kf3
{[%clk 0:01:29.1]} 40... Nh4+ {[%clk 0:00:10.3]} 41. Ke4 {[%clk 0:01:28.6]}
41... Rh1 {[%clk 0:00:08.8]} 42. Bc6 {[%clk 0:01:18.5]} 42... Rxh3 {[%clk
0:00:08.5]} 43. Rxb6 {[%clk 0:01:19.1]} 43... Rh1 {[%clk 0:00:08.5]} 44. a5
{[%clk 0:01:16.3]} 44... Ra1 {[%clk 0:00:08.6]} 45. a6 {[%clk 0:01:16.7]} 45...
Kg7 {[%clk 0:00:08]} 46. Bb7 {[%clk 0:01:12.5]} 46... h5 {[%clk 0:00:07]} 47.
Kf4 {[%clk 0:01:11.8]} 47... Nf5 {[%clk 0:00:05.2]} 48. Kg5 {[%clk 0:01:02.7]}
48... h4 {[%clk 0:00:05]} 49. Kg4 {[%clk 0:01:02.9]} 49... Rg1+ {[%clk
0:00:04.1]} 50. Kh3 {[%clk 0:01:02.7]} 50... Ra1 {[%clk 0:00:05]} 51. Rb4 {[%clk
0:00:58.9]} 51... Kh6 {[%clk 0:00:04.9]} 52. e4 {[%clk 0:00:57.8]} 52... Nd6
{[%clk 0:00:02]} 53. Kxh4 {[%clk 0:00:56.3]} 53... Rh1+ {[%clk 0:00:01]} 54. Kg3
{[%clk 0:00:55.6]} 54... Rg1+ {[%clk 0:00:01.9]} 55. Kf3 {[%clk 0:00:55.5]}
55... Ra1 {[%clk 0:00:02.8]} 56. e5 {[%clk 0:00:53.1]} 56... Nf5 {[%clk
0:00:02.2]} 57. Ke4 {[%clk 0:00:51.5]} 57... Kg5 {[%clk 0:00:02.4]} 58. Kd3
{[%clk 0:00:50.9]} 58... Kf4 {[%clk 0:00:02.3]} 59. Kc4 {[%clk 0:00:50.8]} 1-0

[Event "*** Titled Tuesday Blitz"]
[Site "Chess.com"]
[Date "2020.05.12"]
[Round "9"]
[White "Mili_Brizzi"]
[Black "kasparicy"]
[Result "1-0"]
[WhiteElo "2468"]
[BlackElo "2320"]
[TimeControl "180+1"]
[EndTime "11:43:32 PDT"]
[Termination "Mili_Brizzi won by resignation"]

1. d4 {[%clk 0:03:00.9]} 1... Nf6 {[%clk 0:02:58.8]} 2. c4 {[%clk 0:03:00.8]}
2... g6 {[%clk 0:02:59.4]} 3. Nc3 {[%clk 0:03:00.5]} 3... d5 {[%clk 0:02:59.9]}
4. Bg5 {[%clk 0:02:58.5]} 4... Bg7 {[%clk 0:02:57.9]} 5. Nf3 {[%clk 0:02:56.9]}
5... Ne4 {[%clk 0:02:57.6]} 6. Bh4 {[%clk 0:02:51.1]} 6... Nxc3 {[%clk
0:02:52.8]} 7. bxc3 {[%clk 0:02:50.6]} 7... c5 {[%clk 0:02:53.7]} 8. e3 {[%clk
0:02:50.3]} 8... O-O {[%clk 0:02:53.1]} 9. Be2 {[%clk 0:02:49.3]} 9... Qa5
{[%clk 0:02:51.5]} 10. O-O {[%clk 0:02:39.8]} 10... cxd4 {[%clk 0:02:45.5]} 11.
cxd4 {[%clk 0:02:29.9]} 11... Nc6 {[%clk 0:02:45.4]} 12. Qb3 {[%clk 0:02:22.9]}
12... dxc4 {[%clk 0:02:39.3]} 13. Bxc4 {[%clk 0:02:18.6]} 13... Qh5 {[%clk
0:02:39.2]} 14. Be2 {[%clk 0:02:12.1]} 14... e5 {[%clk 0:02:30.3]} 15. d5 {[%clk
0:02:04.7]} 15... Na5 {[%clk 0:02:20]} 16. Qb4 {[%clk 0:01:57.9]} 16... b6
{[%clk 0:02:20]} 17. e4 {[%clk 0:01:57.2]} 17... f5 {[%clk 0:01:51.8]} 18. Be7
{[%clk 0:01:46]} 18... Rf7 {[%clk 0:01:35.3]} 19. exf5 {[%clk 0:01:43.7]} 19...
gxf5 {[%clk 0:01:19.1]} 20. Rae1 {[%clk 0:01:40]} 20... Qg6 {[%clk 0:01:00.9]}
21. d6 {[%clk 0:01:24.6]} 21... Bd7 {[%clk 0:00:55.6]} 22. Bc4 {[%clk
0:01:15.6]} 22... Nxc4 {[%clk 0:00:53.7]} 23. Qxc4 {[%clk 0:01:15.9]} 23... Rc8
{[%clk 0:00:46.9]} 24. Qb3 {[%clk 0:01:13.6]} 24... e4 {[%clk 0:00:41.6]} 25.
Nh4 {[%clk 0:01:05.5]} 25... Qh6 {[%clk 0:00:37.7]} 26. g3 {[%clk 0:00:59.4]}
26... Bf6 {[%clk 0:00:35.8]} 27. Bxf6 {[%clk 0:00:54.9]} 27... Qxf6 {[%clk
0:00:33.8]} 28. Rd1 {[%clk 0:00:51.8]} 28... Kh8 {[%clk 0:00:33.3]} 29. Rc1
{[%clk 0:00:47.1]} 29... Rff8 {[%clk 0:00:24.7]} 30. Rxc8 {[%clk 0:00:32]} 30...
Rxc8 {[%clk 0:00:25.6]} 31. Qd5 {[%clk 0:00:30.1]} 31... Qe6 {[%clk 0:00:19.6]}
32. Qd4+ {[%clk 0:00:29.4]} 32... Kg8 {[%clk 0:00:18.9]} 33. Ng2 {[%clk
0:00:29.5]} 33... Rc4 {[%clk 0:00:18.2]} 34. Qd2 {[%clk 0:00:28.9]} 34... Rc6
{[%clk 0:00:18.2]} 35. Qg5+ {[%clk 0:00:28.7]} 35... Qg6 {[%clk 0:00:16.8]} 36.
Qd8+ {[%clk 0:00:26.6]} 36... Qe8 {[%clk 0:00:16.6]} 37. Qg5+ {[%clk 0:00:26.1]}
37... Qg6 {[%clk 0:00:16.2]} 38. Qh4 {[%clk 0:00:21.3]} 38... Rxd6 {[%clk
0:00:14.2]} 39. Nf4 {[%clk 0:00:21]} 39... Qg7 {[%clk 0:00:14.3]} 40. Rc1 {[%clk
0:00:19.3]} 40... Rc6 {[%clk 0:00:13.3]} 41. Rd1 {[%clk 0:00:18.4]} 41... Rc8
{[%clk 0:00:09.2]} 42. Nh5 {[%clk 0:00:16.8]} 42... Qg4 {[%clk 0:00:05.2]} 43.
Nf6+ {[%clk 0:00:16.4]} 43... Kf7 {[%clk 0:00:04.3]} 44. Nxg4 {[%clk 0:00:17.3]}
1-0

[Event "*** Titled Tuesday Blitz"]
[Site "Chess.com"]
[Date "2020.05.12"]
[Round "9"]
[White "rakshi2005"]
[Black "today_good_day"]
[Result "0-1"]
[WhiteElo "2252"]
[BlackElo "2107"]
[TimeControl "180+1"]
[EndTime "11:43:32 PDT"]
[Termination "today_good_day won by resignation"]

1. e4 {[%clk 0:03:00.9]} 1... c5 {[%clk 0:02:59.8]} 2. Nf3 {[%clk 0:02:59.6]}
2... d6 {[%clk 0:02:59.5]} 3. d4 {[%clk 0:02:58.4]} 3... cxd4 {[%clk 0:02:59.6]}
4. Nxd4 {[%clk 0:02:59.3]} 4... Nf6 {[%clk 0:02:59.3]} 5. Nc3 {[%clk 0:02:59.5]}
5... Nc6 {[%clk 0:02:59.4]} 6. g3 {[%clk 0:02:56.1]} 6... e5 {[%clk 0:02:57.7]}
7. Nxc6 {[%clk 0:02:53.6]} 7... bxc6 {[%clk 0:02:56.3]} 8. Bg2 {[%clk
0:02:54.5]} 8... Be7 {[%clk 0:02:54.4]} 9. O-O {[%clk 0:02:55]} 9... O-O {[%clk
0:02:53.7]} 10. h3 {[%clk 0:02:55.4]} 10... Rb8 {[%clk 0:02:52.9]} 11. Rb1
{[%clk 0:02:54.1]} 11... Be6 {[%clk 0:02:51.4]} 12. f4 {[%clk 0:02:50.4]} 12...
Bc4 {[%clk 0:02:37.1]} 13. Rf2 {[%clk 0:02:39]} 13... exf4 {[%clk 0:02:30.4]}
14. Bxf4 {[%clk 0:02:37.5]} 14... d5 {[%clk 0:02:13.9]} 15. e5 {[%clk
0:02:36.2]} 15... Nd7 {[%clk 0:02:02.1]} 16. Qh5 {[%clk 0:02:17.2]} 16... Bc5
{[%clk 0:01:54.3]} 17. Qg4 {[%clk 0:01:35]} 17... Bxf2+ {[%clk 0:01:32.3]} 18.
Kxf2 {[%clk 0:01:34.6]} 18... Kh8 {[%clk 0:01:13]} 19. Kg1 {[%clk 0:01:20.5]}
19... Rb7 {[%clk 0:01:06.1]} 20. Re1 {[%clk 0:01:15.2]} 20... Nc5 {[%clk
0:01:04.6]} 21. Bg5 {[%clk 0:01:06.9]} 21... Qd7 {[%clk 0:01:03.3]} 22. Qh4
{[%clk 0:01:01.4]} 22... Ne6 {[%clk 0:01:01.6]} 23. Ne4 {[%clk 0:00:56.7]} 23...
Nxg5 {[%clk 0:00:35.3]} 24. Nxg5 {[%clk 0:00:54.8]} 24... Qf5 {[%clk 0:00:32]}
25. g4 {[%clk 0:00:32.6]} 25... Qg6 {[%clk 0:00:29.2]} 26. b3 {[%clk 0:00:27]}
26... Ba6 {[%clk 0:00:27.6]} 27. e6 {[%clk 0:00:26.5]} 27... f6 {[%clk
0:00:15.3]} 28. e7 {[%clk 0:00:09.9]} 28... Re8 {[%clk 0:00:15]} 29. Ne6 {[%clk
0:00:04.3]} 29... Rbxe7 {[%clk 0:00:12.6]} 30. g5 {[%clk 0:00:04]} 30... Rxe6
{[%clk 0:00:11.1]} 31. Rxe6 {[%clk 0:00:03.8]} 31... Rxe6 {[%clk 0:00:11.3]} 32.
Qg4 {[%clk 0:00:04.7]} 32... Re1+ {[%clk 0:00:10.1]} 33. Kh2 {[%clk 0:00:05.1]}
33... Qe8 {[%clk 0:00:08.7]} 34. gxf6 {[%clk 0:00:03.8]} 34... Qe5+ {[%clk
0:00:08.7]} 35. Qg3 {[%clk 0:00:02.9]} 35... Qxg3+ {[%clk 0:00:08.8]} 36. Kxg3
{[%clk 0:00:03.8]} 36... gxf6 {[%clk 0:00:09.3]} 37. Kf2 {[%clk 0:00:04.1]}
37... Re2+ {[%clk 0:00:09.5]} 38. Kf3 {[%clk 0:00:04.2]} 38... Rxg2 {[%clk
0:00:08.4]} 39. Kxg2 {[%clk 0:00:04.1]} 39... Kg7 {[%clk 0:00:08.6]} 0-1

[Event "*** Titled Tuesday Blitz"]
[Site "Chess.com"]
[Date "2020.05.12"]
[Round "9"]
[White "pooh2012"]
[Black "ZoltanChef"]
[Result "1-0"]
[WhiteElo "2451"]
[BlackElo "2118"]
[TimeControl "180+1"]
[EndTime "11:43:35 PDT"]
[Termination "pooh2012 won on time"]

1. e4 {[%clk 0:03:00.9]} 1... g6 {[%clk 0:02:57.1]} 2. Nf3 {[%clk 0:02:59.5]}
2... Bg7 {[%clk 0:02:58]} 3. h4 {[%clk 0:02:59.8]} 3... d5 {[%clk 0:02:57]} 4.
exd5 {[%clk 0:02:58.4]} 4... Qxd5 {[%clk 0:02:56.4]} 5. Nc3 {[%clk 0:02:58.1]}
5... Qe6+ {[%clk 0:02:55.9]} 6. Be2 {[%clk 0:02:53.9]} 6... Nf6 {[%clk 0:02:56]}
7. d3 {[%clk 0:02:52.9]} 7... Nc6 {[%clk 0:02:53.9]} 8. Ng5 {[%clk 0:02:52.2]}
8... Qd7 {[%clk 0:02:43]} 9. Nge4 {[%clk 0:02:38]} 9... Nd4 {[%clk 0:02:35.3]}
10. Nxf6+ {[%clk 0:02:30.4]} 10... Bxf6 {[%clk 0:02:34.7]} 11. h5 {[%clk
0:02:31.1]} 11... Qc6 {[%clk 0:02:25]} 12. Kf1 {[%clk 0:02:18.4]} 12... Nxe2
{[%clk 0:02:18.1]} 13. Qxe2 {[%clk 0:02:19.3]} 13... Be6 {[%clk 0:02:12.5]} 14.
Ne4 {[%clk 0:02:14.8]} 14... Bg7 {[%clk 0:02:10.7]} 15. h6 {[%clk 0:02:08.5]}
15... Be5 {[%clk 0:02:05]} 16. Ng5 {[%clk 0:02:03.9]} 16... Bd5 {[%clk
0:01:48.6]} 17. f3 {[%clk 0:01:14.7]} 17... Bf6 {[%clk 0:01:42.7]} 18. Ne4
{[%clk 0:01:13.8]} 18... Bd4 {[%clk 0:01:38.3]} 19. c3 {[%clk 0:01:12.1]} 19...
Be5 {[%clk 0:01:32.7]} 20. Be3 {[%clk 0:00:56.3]} 20... f5 {[%clk 0:01:26.3]}
21. Nc5 {[%clk 0:00:47.3]} 21... b6 {[%clk 0:01:20.1]} 22. Nb3 {[%clk
0:00:42.8]} 22... O-O-O {[%clk 0:01:18]} 23. Kf2 {[%clk 0:00:37.9]} 23... Bf6
{[%clk 0:01:12.4]} 24. Nd4 {[%clk 0:00:32.6]} 24... Qb7 {[%clk 0:01:04.2]} 25.
a4 {[%clk 0:00:16.6]} 25... e5 {[%clk 0:01:01.8]} 26. Nc2 {[%clk 0:00:17.2]}
26... a5 {[%clk 0:00:55.2]} 27. b4 {[%clk 0:00:16.1]} 27... axb4 {[%clk
0:00:51.5]} 28. Nxb4 {[%clk 0:00:14.8]} 28... e4 {[%clk 0:00:49.5]} 29. fxe4
{[%clk 0:00:11.4]} 29... fxe4 {[%clk 0:00:49.2]} 30. d4 {[%clk 0:00:11.9]} 30...
Rhf8 {[%clk 0:00:47.1]} 31. Kg1 {[%clk 0:00:12]} 31... Be6 {[%clk 0:00:39.9]}
32. a5 {[%clk 0:00:11.9]} 32... b5 {[%clk 0:00:32.9]} 33. a6 {[%clk 0:00:11.6]}
33... Qb6 {[%clk 0:00:17.6]} 34. d5 {[%clk 0:00:11.7]} 34... Bxd5 {[%clk
0:00:07]} 35. Bxb6 {[%clk 0:00:11.3]} 35... Bc4 {[%clk 0:00:07.9]} 36. Qe3
{[%clk 0:00:06.4]} 36... cxb6 {[%clk 0:00:08.2]} 37. Qxb6 {[%clk 0:00:06.5]} 1-0

[Event "*** Titled Tuesday Blitz"]
[Site "Chess.com"]
[Date "2020.05.12"]
[Round "9"]
[White "abykhovsky"]
[Black "TregubovP"]
[Result "1/2-1/2"]
[WhiteElo "2669"]
[BlackElo "2553"]
[TimeControl "180+1"]
[EndTime "11:43:38 PDT"]
[Termination "Game drawn by repetition"]

1. d4 {[%clk 0:03:00.9]} 1... Nf6 {[%clk 0:02:59.3]} 2. Nf3 {[%clk 0:02:59.6]}
2... e6 {[%clk 0:02:59.3]} 3. Bg5 {[%clk 0:02:58.9]} 3... h6 {[%clk 0:02:53.7]}
4. Bh4 {[%clk 0:02:58.7]} 4... b6 {[%clk 0:02:50.7]} 5. e3 {[%clk 0:02:56.4]}
5... Bb7 {[%clk 0:02:51]} 6. Bd3 {[%clk 0:02:56.1]} 6... Be7 {[%clk 0:02:49.4]}
7. O-O {[%clk 0:02:56.2]} 7... O-O {[%clk 0:02:49]} 8. c4 {[%clk 0:02:56.5]}
8... c5 {[%clk 0:02:34.9]} 9. Nc3 {[%clk 0:02:55.3]} 9... cxd4 {[%clk
0:02:33.8]} 10. exd4 {[%clk 0:02:56.2]} 10... d5 {[%clk 0:02:34.1]} 11. Qe2
{[%clk 0:02:46.7]} 11... Nbd7 {[%clk 0:02:24.9]} 12. Rfe1 {[%clk 0:02:43.1]}
12... Rc8 {[%clk 0:02:19.7]} 13. Ne5 {[%clk 0:02:30.5]} 13... dxc4 {[%clk
0:02:07.8]} 14. Bxc4 {[%clk 0:02:31.4]} 14... Nd5 {[%clk 0:02:00.4]} 15. Bxd5
{[%clk 0:02:24.9]} 15... Bxd5 {[%clk 0:01:44.9]} 16. Nxd7 {[%clk 0:02:20.4]}
16... Qxd7 {[%clk 0:01:30.6]} 17. Bxe7 {[%clk 0:02:18.9]} 17... Bc4 {[%clk
0:01:30.9]} 18. Qg4 {[%clk 0:01:18.3]} 18... Qxe7 {[%clk 0:01:30.1]} 19. d5
{[%clk 0:01:18.6]} 19... Qg5 {[%clk 0:01:03.6]} 20. Qxg5 {[%clk 0:01:13.6]}
20... hxg5 {[%clk 0:01:03.7]} 21. dxe6 {[%clk 0:01:01.5]} 21... Bxe6 {[%clk
0:01:03.2]} 22. Re5 {[%clk 0:01:01.6]} 22... Rfd8 {[%clk 0:01:00.6]} 23. Rxg5
{[%clk 0:00:55.2]} 23... Rd2 {[%clk 0:01:00.4]} 24. Rb5 {[%clk 0:00:54.2]} 24...
Rc6 {[%clk 0:00:49.4]} 25. a4 {[%clk 0:00:43.4]} 25... a6 {[%clk 0:00:36]} 26.
Rb4 {[%clk 0:00:43.4]} 26... a5 {[%clk 0:00:36.1]} 27. Rb5 {[%clk 0:00:42.6]}
27... Bc4 {[%clk 0:00:36.3]} 28. Re5 {[%clk 0:00:40.7]} 28... Rxb2 {[%clk
0:00:35.9]} 29. h4 {[%clk 0:00:37.5]} 29... Bb3 {[%clk 0:00:24.2]} 30. Ne4
{[%clk 0:00:36.4]} 30... Rc4 {[%clk 0:00:20.8]} 31. Ng5 {[%clk 0:00:18.1]} 31...
g6 {[%clk 0:00:14.8]} 32. Rae1 {[%clk 0:00:17.2]} 32... Rxh4 {[%clk 0:00:11.9]}
33. g3 {[%clk 0:00:15.7]} 33... Rxa4 {[%clk 0:00:10.6]} 34. Re8+ {[%clk
0:00:14.8]} 34... Kg7 {[%clk 0:00:10.7]} 35. R1e7 {[%clk 0:00:14.7]} 35... Rg4
{[%clk 0:00:06.7]} 36. Ne4 {[%clk 0:00:14.2]} 36... Bd5 {[%clk 0:00:04.2]} 37.
f3 {[%clk 0:00:14.4]} 37... Rxe4 {[%clk 0:00:02.7]} 38. fxe4 {[%clk 0:00:14.4]}
38... Be6 {[%clk 0:00:03.2]} 39. Rb8 {[%clk 0:00:13.9]} 39... a4 {[%clk
0:00:03.1]} 40. Ra7 {[%clk 0:00:12.1]} 40... b5 {[%clk 0:00:02.2]} 41. Rxa4
{[%clk 0:00:12]} 41... Rb1+ {[%clk 0:00:01.3]} 42. Kf2 {[%clk 0:00:11.9]} 42...
Rb2+ {[%clk 0:00:01.9]} 43. Ke1 {[%clk 0:00:12.3]} 43... Rb1+ {[%clk 0:00:02.3]}
44. Kd2 {[%clk 0:00:12.7]} 44... Rb2+ {[%clk 0:00:02.6]} 45. Ke1 {[%clk
0:00:13]} 45... Rb1+ {[%clk 0:00:02.2]} 46. Kf2 {[%clk 0:00:13.5]} 46... Rb2+
{[%clk 0:00:02.7]} 47. Kg1 {[%clk 0:00:14]} 47... Rb1+ {[%clk 0:00:02.9]} 48.
Kf2 {[%clk 0:00:14.6]} 1/2-1/2

[Event "*** Titled Tuesday Blitz"]
[Site "Chess.com"]
[Date "2020.05.12"]
[Round "9"]
[White "SophieNikoladze"]
[Black "przemekpiotrowski"]
[Result "0-1"]
[WhiteElo "2166"]
[BlackElo "2439"]
[TimeControl "180+1"]
[EndTime "11:43:38 PDT"]
[Termination "przemekpiotrowski won by resignation"]

1. d4 {[%clk 0:03:00.9]} 1... c5 {[%clk 0:02:59.7]} 2. e3 {[%clk 0:03:00]} 2...
cxd4 {[%clk 0:02:59.4]} 3. exd4 {[%clk 0:02:59.7]} 3... d5 {[%clk 0:03:00]} 4.
Bd3 {[%clk 0:02:58.4]} 4... Nc6 {[%clk 0:02:59.4]} 5. Nf3 {[%clk 0:02:53]} 5...
Bg4 {[%clk 0:02:57.7]} 6. c3 {[%clk 0:02:52.7]} 6... Nf6 {[%clk 0:02:57.4]} 7.
O-O {[%clk 0:02:52.8]} 7... e6 {[%clk 0:02:58]} 8. Nbd2 {[%clk 0:02:52.9]} 8...
Bd6 {[%clk 0:02:57.4]} 9. h3 {[%clk 0:02:51.9]} 9... Bh5 {[%clk 0:02:57.6]} 10.
Qb3 {[%clk 0:02:49.4]} 10... Rb8 {[%clk 0:02:55.1]} 11. Re1 {[%clk 0:02:49]}
11... O-O {[%clk 0:02:55]} 12. Ne5 {[%clk 0:02:48.7]} 12... Bxe5 {[%clk
0:02:53.2]} 13. dxe5 {[%clk 0:02:43.6]} 13... Nd7 {[%clk 0:02:53.6]} 14. g4
{[%clk 0:02:30.1]} 14... Nc5 {[%clk 0:02:50.7]} 15. Bxh7+ {[%clk 0:02:04.6]}
15... Kxh7 {[%clk 0:02:49]} 16. Qb5 {[%clk 0:02:04.3]} 16... Nd7 {[%clk
0:02:39]} 17. gxh5 {[%clk 0:02:02.3]} 17... Qg5+ {[%clk 0:02:38.3]} 18. Kf1
{[%clk 0:01:57.7]} 18... Qxh5 {[%clk 0:02:37.6]} 19. Qd3+ {[%clk 0:01:56.6]}
19... g6 {[%clk 0:02:29.9]} 20. f4 {[%clk 0:01:55]} 20... Kg7 {[%clk 0:02:23.7]}
21. Kg2 {[%clk 0:01:52.7]} 21... Rh8 {[%clk 0:02:23.1]} 22. Qf3 {[%clk
0:01:46.6]} 22... Qf5 {[%clk 0:02:13.6]} 23. Nf1 {[%clk 0:01:38.3]} 23... Nc5
{[%clk 0:01:44.4]} 24. Ne3 {[%clk 0:01:36.1]} 24... Qe4 {[%clk 0:01:40.9]} 25.
Qxe4 {[%clk 0:01:13.9]} 25... Nxe4 {[%clk 0:01:41.8]} 26. Ng4 {[%clk 0:01:07.9]}
26... Rh4 {[%clk 0:01:34.6]} 27. Rh1 {[%clk 0:01:05.6]} 27... Rbh8 {[%clk
0:01:34.9]} 28. Be3 {[%clk 0:01:04.4]} 28... b6 {[%clk 0:01:35.1]} 29. Rh2
{[%clk 0:01:02.1]} 29... Ne7 {[%clk 0:01:34.6]} 30. Rah1 {[%clk 0:01:00.4]}
30... Nf5 {[%clk 0:01:34.1]} 31. Bf2 {[%clk 0:01:00.1]} 31... R4h5 {[%clk
0:01:30.8]} 32. Ne3 {[%clk 0:00:57.7]} 32... Nxe3+ {[%clk 0:01:26.9]} 33. Bxe3
{[%clk 0:00:57.2]} 33... Rc8 {[%clk 0:01:22.6]} 34. Kf3 {[%clk 0:00:56.2]} 34...
Rc6 {[%clk 0:01:20.6]} 35. Rg2 {[%clk 0:00:53.2]} 35... a6 {[%clk 0:01:18.7]}
36. Kg4 {[%clk 0:00:43]} 36... b5 {[%clk 0:01:15.7]} 37. Rc2 {[%clk 0:00:40.6]}
37... Rc4 {[%clk 0:01:15.5]} 38. Rd1 {[%clk 0:00:39]} 38... g5 {[%clk
0:00:48.6]} 39. Rd4 {[%clk 0:00:35.1]} 39... Rh4+ {[%clk 0:00:47]} 40. Kf3
{[%clk 0:00:33.1]} 40... Rxh3+ {[%clk 0:00:47.4]} 41. Ke2 {[%clk 0:00:33.3]}
41... Rh2+ {[%clk 0:00:39]} 42. Kd1 {[%clk 0:00:32.8]} 42... Rxc2 {[%clk
0:00:31.6]} 43. Kxc2 {[%clk 0:00:32.6]} 43... Rxd4 {[%clk 0:00:31.8]} 44. cxd4
{[%clk 0:00:31.9]} 44... g4 {[%clk 0:00:31.4]} 45. Kd3 {[%clk 0:00:31.3]} 45...
Kg6 {[%clk 0:00:30.6]} 46. Ke2 {[%clk 0:00:30.8]} 46... Kh5 {[%clk 0:00:30]} 47.
b3 {[%clk 0:00:24.9]} 47... g3 {[%clk 0:00:27.4]} 48. Kf3 {[%clk 0:00:24.5]}
48... Kh4 {[%clk 0:00:27.8]} 49. Bg1 {[%clk 0:00:24.2]} 49... Kh3 {[%clk
0:00:27.3]} 50. Be3 {[%clk 0:00:22.9]} 50... Kh2 {[%clk 0:00:24.5]} 51. b4
{[%clk 0:00:17.2]} 51... g2 {[%clk 0:00:24.3]} 52. Ke2 {[%clk 0:00:14.1]} 52...
g1=Q {[%clk 0:00:21.9]} 0-1

[Event "*** Titled Tuesday Blitz"]
[Site "Chess.com"]
[Date "2020.05.12"]
[Round "9"]
[White "Slovak_fighter2000"]
[Black "mamey78"]
[Result "1/2-1/2"]
[WhiteElo "2533"]
[BlackElo "2378"]
[TimeControl "180+1"]
[EndTime "11:43:39 PDT"]
[Termination "Game drawn by repetition"]

1. d4 {[%clk 0:03:00.9]} 1... d5 {[%clk 0:02:59.2]} 2. Nf3 {[%clk 0:02:58.2]}
2... Nf6 {[%clk 0:02:58.6]} 3. c4 {[%clk 0:02:58.4]} 3... c6 {[%clk 0:02:58.4]}
4. Nc3 {[%clk 0:02:56.7]} 4... e6 {[%clk 0:02:57.9]} 5. e3 {[%clk 0:02:55.4]}
5... Nbd7 {[%clk 0:02:57]} 6. Qc2 {[%clk 0:02:53.7]} 6... Bd6 {[%clk 0:02:55.4]}
7. g4 {[%clk 0:02:54.3]} 7... Bb4 {[%clk 0:02:54.9]} 8. Bd2 {[%clk 0:02:48.5]}
8... b6 {[%clk 0:02:49.8]} 9. g5 {[%clk 0:02:46.6]} 9... Bxc3 {[%clk 0:02:48.4]}
10. Bxc3 {[%clk 0:02:40]} 10... Ne4 {[%clk 0:02:48.5]} 11. h4 {[%clk 0:02:40]}
11... O-O {[%clk 0:02:44.7]} 12. Bd3 {[%clk 0:02:37.9]} 12... f5 {[%clk
0:02:43.2]} 13. O-O-O {[%clk 0:02:24.8]} 13... Ba6 {[%clk 0:02:41.9]} 14. cxd5
{[%clk 0:02:17.6]} 14... Bxd3 {[%clk 0:02:42.8]} 15. Rxd3 {[%clk 0:02:16.7]}
15... cxd5 {[%clk 0:02:41.1]} 16. Kb1 {[%clk 0:02:15.4]} 16... Rc8 {[%clk
0:02:40]} 17. Rc1 {[%clk 0:02:09.3]} 17... b5 {[%clk 0:02:29.9]} 18. Qe2 {[%clk
0:02:05.6]} 18... a5 {[%clk 0:02:23.3]} 19. Bd2 {[%clk 0:02:04]} 19... Rxc1+
{[%clk 0:02:18.7]} 20. Bxc1 {[%clk 0:02:04.1]} 20... Qb6 {[%clk 0:02:14.1]} 21.
Rd1 {[%clk 0:01:59.5]} 21... b4 {[%clk 0:02:07.6]} 22. Nd2 {[%clk 0:01:45.7]}
22... a4 {[%clk 0:01:59]} 23. Nxe4 {[%clk 0:01:25.6]} 23... fxe4 {[%clk
0:01:59.9]} 24. Bd2 {[%clk 0:01:25.6]} 24... Rc8 {[%clk 0:01:12.1]} 25. Rc1
{[%clk 0:01:24]} 25... Rxc1+ {[%clk 0:01:11.6]} 26. Bxc1 {[%clk 0:01:24.9]}
26... b3 {[%clk 0:01:11.5]} 27. Qd1 {[%clk 0:01:15.4]} 27... Qb5 {[%clk
0:01:06.1]} 28. Qg4 {[%clk 0:01:09.2]} 28... Kf7 {[%clk 0:00:44.9]} 29. Qh5+
{[%clk 0:01:06.4]} 29... Ke7 {[%clk 0:00:41.1]} 30. Qd1 {[%clk 0:01:06.9]} 30...
Nb6 {[%clk 0:00:38.1]} 31. Qd2 {[%clk 0:00:38.8]} 31... bxa2+ {[%clk 0:00:16.6]}
32. Ka1 {[%clk 0:00:26.7]} 32... Nc4 {[%clk 0:00:13.7]} 33. Qc3 {[%clk
0:00:23.6]} 33... Qb3 {[%clk 0:00:13.7]} 34. Qe1 {[%clk 0:00:21.4]} 34... a3
{[%clk 0:00:11.3]} 35. Qe2 {[%clk 0:00:20.1]} 35... axb2+ {[%clk 0:00:09.8]} 36.
Bxb2 {[%clk 0:00:21]} 36... Kf7 {[%clk 0:00:08.8]} 37. Qh5+ {[%clk 0:00:16.5]}
37... Kf8 {[%clk 0:00:06.9]} 38. Qe2 {[%clk 0:00:16.2]} 38... Qb4 {[%clk
0:00:04.8]} 39. Kxa2 {[%clk 0:00:12.2]} 39... Qa4+ {[%clk 0:00:04.3]} 40. Kb1
{[%clk 0:00:11.5]} 40... Qb3 {[%clk 0:00:05.2]} 41. Ka1 {[%clk 0:00:07.5]} 41...
Qa4+ {[%clk 0:00:04.3]} 42. Kb1 {[%clk 0:00:07.6]} 42... Qb3 {[%clk 0:00:05.2]}
43. Ka1 {[%clk 0:00:07.8]} 43... Qa4+ {[%clk 0:00:04.8]} 44. Kb1 {[%clk
0:00:07.6]} 1/2-1/2